Cogmind - Beta 16.1 @@@ ROGUE MODE // 2026.03.02 @ 05:53:45 Player: FL-IST Result: Destroyed by S-10 Pest with Light Assault Rifle Performance ------------- Evolutions (0) 0 Regions Visited (1) 200 Robots Destroyed (16) 80 Value Destroyed (409) 409 Prototype IDs (0) 0 Alien Tech Used (0) 0 Bonus (0) 0 TOTAL SCORE: 689 Bonus ------- None Cogmind --------- Core Integrity 0/250 Matter 272/300 Energy 265/265 System Corruption 0% Temperature Cool (0) Movement Walking (120) Location -10/Materials Parts ------- > --- POWER (1) -------- Improved Ion Engine > --- PROPULSION (2) --- Improved Aluminum Leg Improved Aluminum Leg > --- UTILITY (2) ------ Medium Storage Unit > --- WEAPON (2) ------- Shotgun Shotgun > --- INVENTORY (10) --- Improved Aluminum Leg Improved Aluminum Leg VTOL Module VTOL Module VTOL Module VTOL Module Small Storage Unit Light Assault Rifle Shotgun Shotgun Peak State ------------ > --- POWER ------------ Improved Ion Engine > --- PROPULSION ------- Improved Aluminum Leg Improved Aluminum Leg > --- UTILITY ---------- Medium Storage Unit > --- WEAPON ----------- Shotgun Shotgun > --- INVENTORY -------- Improved Aluminum Leg Improved Aluminum Leg VTOL Module VTOL Module VTOL Module VTOL Module Small Storage Unit Light Assault Rifle [Rating: 12] Favorites ----------- Power Improved Ion Engine Engine Improved Ion Engine Propulsion Improved Aluminum Leg Leg Improved Aluminum Leg Wheel Wheel Flight Unit VTOL Module Utility Medium Storage Unit Storage Medium Storage Unit Weapon Heavy EM Pulse Gun Energy Gun Heavy EM Pulse Gun Ballistic Gun Shotgun Build | -11 -10 ------- Run | Yrd Mat Slots Evolved . | . . Power . | . . Propulsion . | . . Utility . | . . Weapon . | . . Parts Attached 19 | 4 15 Power 3 | . 3 Engine 3 | . 3 Core . | . . Reactor . | . . Propulsion 6 | 2 4 Treads . | . . Leg 2 | . 2 Wheel 2 | 2 . Hover . | . . Flight 2 | . 2 Utility 1 | . 1 Device . | . . Storage 1 | . 1 Processor . | . . Hackware . | . . Protection . | . . Artifact . | . . Weapon 9 | 2 7 Energy Gun 4 | . 4 Energy Cannon . | . . Ballistic Gun 5 | 2 3 Ballistic Cannon . | . . Launcher . | . . Special Weapon . | . . Impact Weapon . | . . Slashing Weapon . | . . Piercing Weapon . | . . Special Melee Weapon . | . . Unidentified Prototypes . | . . Parts Lost 7 | . 7 Power 1 | . 1 Propulsion 2 | . 2 Utility . | . . Weapon 4 | . 4 Highest Loss Streak 5 | . 5 To Critical Strikes . | . . Average Backups 5 | . 5 Power . | . . Propulsion 2 | . 2 Utility . | . . Weapon 1 | . 1 Tool/Special . | . . Unused Backups 8 | . 8 Power 1 | . 1 Propulsion 4 | . 4 Utility 1 | . 1 Weapon 2 | . 2 Tool/Special . | . . Average Slot Usage (%) 56 | . 56 Engine 12 | . 12 Leg 8 | . 8 Wheel 2 | . 2 Flight 4 | . 4 Storage 4 | . 4 Energy Gun 10 | . 10 Ballistic Gun 13 | . 13 Peak Build Rating 12 | 4 12 Average Rating 7 | 2 7 On Entrance 2 | . 4 Avg Prop Armor Cover (%) . | . . Naked Turns . | . . Heaviest Build 23 | 3 23 Greatest Support 26 | 20 26 Greatest Overweight (x) 4 | . 4 Average Overweight (x) . | . . Largest Inventory Capacity 10 | 5 10 Average Capacity 6 | 5 6 Most Carried 10 | . 10 Average Carried 5 | . 5 Final Capacity 10 | 5 10 Final Carried 10 | . 10 Class Distribution -------------------- 87% | Mutant 12% | Sprinter Dominant Class ---------------- Mutant | -10/Materials Resources | -11 -10 ----------- Run | Yrd Mat Matter Collected 563 | 171 392 Remotely . | . . Salvage Created 561 | . 561 Parts 34 | . 34 Haulers Intercepted 2 | . 2 Recyclers Shooed . | . . Parts Field Recycled . | . . Retrieved Matter . | . . Parts Self-Destructed . | . . Prevented . | . . Parts Restored . | . . Kills | -11 -10 ------- Run | Yrd Mat Combat Hostiles Destroyed 10 | . 10 Guns 8 | . 8 Classes Destroyed 6 | . 6 Builder 1 | . 1 Hauler 2 | . 2 Operator 2 | . 2 Watcher 1 | . 1 Swarmer 1 | . 1 Grunt 9 | . 9 Best Kill Streak 4 | . 4 Combat Bots Only 4 | . 4 Max Kills in Single Turn 1 | . 1 Gunslinging . | . . Exploded . | . . Melee . | . . Uniques/NPCs Destroyed . | . . Combat | -11 -10 -------- Run | Yrd Mat Hostile Shots Fired 98 | . 98 Missed 24 | . 24 Hits 74 | . 74 Projectile 74 | . 74 Damage Taken 872 | . 872 Core 250 | . 250 Absorbed by Shields . | . . Core Remaining (%) 100 | 100 . Volleys Fired 56 | . 56 Largest 2 | . 2 Hottest 90 | . 90 Shots Fired 102 | . 102 Gun 102 | . 102 Cannon . | . . Launcher . | . . Special . | . . Kinetic 60 | . 60 Thermal . | . . Explosive . | . . Electromagnetic 42 | . 42 Robot Hit Streak 8 | . 8 Robot Miss Streak 5 | . 5 Penetration Max . | . . Secondary Targets . | . . Shots Hit Robots 68 | . 68 Core Hits 24 | . 24 Critical Kills . | . . Critical Parts Destroyed 1 | . 1 Critical Strikes 3 | . 3 Destroy 1 | . 1 Corrupt 2 | . 2 Melee Attacks . | . . Impact . | . . Slashing . | . . Piercing . | . . Sneak Attacks . | . . Combat Hostiles . | . . Follow-up Attacks . | . . Damage Inflicted 987 | . 987 Guns 987 | . 987 Cannons . | . . Explosions . | . . Melee . | . . Ramming . | . . Kinetic 548 | . 548 Thermal . | . . Explosive . | . . Electromagnetic 439 | . 439 Impact . | . . Slashing . | . . Piercing . | . . Highest Corruption . | . . Average Corruption . | . . Corruption Purged . | . . Corruption Blocked . | . . Overload Shots . | . . Overflow Damage . | . . Projectiles . | . . Explosions . | . . Melee . | . . Knockbacks . | . . Impact . | . . Kinetic . | . . Secondary . | . . Self-Inflicted Damage . | . . Shots . | . . Rammed . | . . Targets Rammed . | . . Kicked . | . . Crushed . | . . Highest Temperature 258 | . 258 Average Temperature 77 | . 77 Received Heat Transfer 477 | . 477 Effects 4 | . 4 Energy Bleed 1 | . 1 Interference 3 | . 3 Siege Activations . | . . Martial Activations . | . . Shielding Activations . | . . Robots Disrupted . | . . Combat Hostiles . | . . Robots Corrupted 2 | . 2 Combat Hostiles 2 | . 2 Parts Fried 2 | . 2 Impact Corruptions . | . . Robots Melted . | . . Combat Hostiles . | . . Parts Melted . | . . Heat Transferred . | . . Parts Sabotaged . | . . Parts Stolen . | . . Parts Stripped . | . . Power Chain Reactions . | . . Alert | -11 -10 ------- Run | Yrd Mat Maximum Alert Level . | . . Low Security (%) 100 | 100 100 Level 1 . | . . Level 2 . | . . Level 3 . | . . Level 4 . | . . Level 5 . | . . High Security . | . . Max Security . | . . Peak Influence 135 | . 135 Initial . | . . Average 66 | . 69 Influence Increases 410 | . 410 Destroy 0b10 Robot/C 200 | . 200 Destroy 0b10 Robot/NC 30 | . 30 Destroy Leader 36 | . 36 Successful Hack 9 | . 9 Disable Machine 15 | . 15 Lose Combat Pursuer 120 | . 120 Influence Decreases 325 | . 325 Time Decay 275 | . 275 Lost Part 50 | . 50 Squads Dispatched 2 | . 2 Investigation . | . . Extermination . | . . Reinforcement 2 | . 2 Assault . | . . Garrison . | . . Intercept . | . . Searches Triggered . | . . Construction Impeded . | . . Haulers Reinforced . | . . Active Scanning Responses . | . . Cargo Convoy Interrupts . | . . Stealth | -11 -10 --------- Run | Yrd Mat Distress Signals 2 | . 2 Communications Jammed . | . . Distress Signals . | . . Times Spotted 29 | . 29 Peak Tracking Total 6 | . 6 Tactical Retreats 4 | . 4 Traps | -11 -10 ------- Run | Yrd Mat Traps Triggered . | . . Indirectly . | . . Trap Hack Attempts . | . . Triggered . | . . Disarmed . | . . Reprogrammed . | . . Reused . | . . Traps Extracted . | . . Installed . | . . Triggered . | . . Machines | -11 -10 ---------- Run | Yrd Mat Machines Disabled 1 | . 1 Max in Single Turn 1 | . 1 Machines Repaired . | . . Machines Dismantled . | . . Machines Sabotaged . | . . Overloaded Fab Kills . | . . Hacking | -11 -10 --------- Run | Yrd Mat Machines Accessed 1 | . 1 Terminals 1 | . 1 Fabricators . | . . Repair Stations . | . . Recycling Units . | . . Scanalyzers . | . . Garrison Access . | . . Total Hacks 5 | . 5 Successful 2 | . 2 Failed 3 | . 3 Catastrophic . | . . Database Lockouts . | . . Manual 5 | . 5 Terminals 5 | . 5 Fabricators . | . . Repair Stations . | . . Recycling Units . | . . Scanalyzers . | . . Garrison Access . | . . Terminal Hacks . | . . Fabricator Hacks . | . . Repair Station Hacks . | . . Recycling Unit Hacks . | . . Scanalyzer . | . . Garrison Access Hacks . | . . Unauthorized Hacks 2 | . 2 Terminals 2 | . 2 Botnet 1 | . 1 Skim 1 | . 1 Fabricators . | . . Repair Stations . | . . Recycling Units . | . . Scanalyzers . | . . Garrison Access . | . . Data Cores Recovered . | . . Used . | . . Hacking Detections 1 | . 1 Full Trace Events . | . . Feedback Events . | . . Feedback Blocked . | . . Robot Schematics Acquired . | . . Robots Built . | . . Authchips . | . . Time . | . . Total Robot Build Rating . | . . Part Schematics Acquired . | . . Parts Built . | . . Authchips . | . . Time . | . . Total Part Build Rating . | . . Part Studies Acquired . | . . Parts Repaired . | . . Time . | . . Parts Recycled . | . . Recycled Matter . | . . Retrieved Matter . | . . Retrieved Components . | . . Parts Scanalyzed . | . . Part Schematics Acquired . | . . Parts Damaged . | . . Bothacking | -11 -10 ------------ Run | Yrd Mat Used RIF Installer . | . . Robots Hacked . | . . Non-combat . | . . Combat . | . . Robot Hacks Applied . | . . Relay Couplers Released . | . . Fabnet Peak Effective % . | . . Robots Rewired . | . . Allies Hacked . | . . Hacks Repelled . | . . Allies | -11 -10 -------- Run | Yrd Mat Total Allies . | . . Largest Group . | . . Highest-Rated Group . | . . Highest-Rated Ally . | . . Total Orders . | . . Ally Attacks . | . . Total Damage . | . . Kills . | . . Allies Corrupted . | . . Allies Melted . | . . Intel | -11 -10 ------- Run | Yrd Mat Active Infowar (turns) . | . . Robot Analysis Total . | . . Derelict Logs Recovered . | . . Drone Launches . | . . Drone Recoveries . | . . Exploration | -11 -10 ------------- Run | Yrd Mat Turns Passed 730 | 34 696 Spaces Moved 530 | 37 493 Core 95 | 6 89 Treads . | . . Legs 121 | . 121 Wheels 101 | 31 70 Hover . | . . Flight 213 | . 213 Fastest Speed 32 | 50 32 Average Speed 90 | 75 91 Slowest Speed 250 | 80 250 Overloaded Moves . | . . Propulsion Burnouts . | . . Robots Hopped 2 | . 2 Potential Cave-ins . | . . Cave-ins Triggered . | . . Exploration Rate (%) 30 | 3 57 Regions Visited 1 Branch Regions . Pre-discovered Areas . | . . Known Exits Taken . | . . Unknown Exits Taken 1 | 1 . Scrap Searched . | . . Spaces Dug . | . . Terrain Destroyed . | . . Melee . | . . Projectile . | . . AOE . | . . Terrain Rammed . | . . Walls Destroyed . | . . Machines Disabled . | . . Actions | -11 -10 --------- Run | Yrd Mat Total 677 | 40 637 Wait 44 | . 44 Move 525 | 36 489 Hop 2 | . 2 Pick Up 19 | . 19 Fast Attach 9 | 4 5 Attach 7 | . 7 Detach 1 | . 1 Swap 8 | . 8 Drop 6 | . 6 Fire 56 | . 56 Melee . | . . Ram . | . . Kick . | . . Crush . | . . Escape Stasis . | . . Rewire . | . . Trap . | . . Miscellaneous . | . . Route ------- -11/Scrapyard -10/Materials (discovered 3 exits: [*Mat x2] / [*Sub]) History --------- Turn | Location | Event 14 | -11/Scrapyard | Discovered new exit (range 15) 35 | -11/Scrapyard | Entered Materials 125 | -10/Materials | Core integrity fell below 50% 125 | -10/Materials | Discovered new exit (range 12) 180 | -10/Materials | Lost 5 parts (1p2n2w) 317 | -10/Materials | Build established: Mutant 325 | -10/Materials | Discovered new exit (range 9) 576 | -10/Materials | Core integrity fell below 20% 612 | -10/Materials | Discovered new exit (range 10) 731 | -10/Materials | Destroyed by S-10 Pest with Light Assault Rifle Last Messages --------------- 00533_ Acquired Shotgun. 00577_ G-34 Mercenary destroyed. 00586_ G-47 Trooper destroyed. 00592_ G-34 Mercenary destroyed. 00597_ Acquired 65 matter. 00597_ K-01 Serf cleans the Fusion Modulator. 00598_ Acquired 41 matter. 00601_ K-01 Serf collects debris. 00612_ EXIT=FOUND 00619_ K-01 Serf collects debris. 00637_ A-02 Transporter destroyed. 00643_ K-01 Serf collects debris. 00644_ K-01 Serf cleans the Fusion Modulator. 00647_ K-01 Serf collects debris. 00648_ Extracted 4 energy. 00649_ Acquired 36 matter. 00651_ Extracted 4 energy. 00651_ K-01 Serf collects debris. 00654_ K-01 Serf cleans the Fusion Modulator. 00730_ S-10 Pest destroyed. Map ----- +----------------------------------------------------+ | ???????????????????????????# #????# """ | | ???????????????????????????# #????# | | ???????????????????????????# #????# """ | | ???????????????????????????# #????# """ | | ???????????????????????????# #????# """ | | ???????????????????????????########+##????#[ | | ??????????????????????????????# %#?????####### | | ??????????????????????????????# #???????????? | | ??????????????????????????????# ###?????????? | | ??????????????????????????????# ^^^########### | | ??????????????????????????????# #*T | | ??????????????????????????????#* /= """ | | ??????????????????????????????##### # """ | | ??????????????????????????????????# # """ | | ??????????????????????????????????# # | | ??????????????????????????????????# ########### | | ??????????????????????????????????# #?????????? | | ?????????????????????############## #?????????? | | ?????????????????????# #?????????? | | ?????????????????????# #?????????? | | ?????????????????????# """ T #?????????? | | ?????????????????????# """"" #?????????? | | ?????????????????????# """""s #?????????? | | ??????????????######## """"" % ######???? | | ??????????????# || # """ ! #?? | | ??????????????# || # @ s k #""" | | ??????????????# [ # % + | | ????????????### # k ###########+## ###### | | ????????????# #???# # #[ | | ???########## #???# """"" # # | | ???? *# ^ #???# """"" # # """ | | ???? """ # """ ######???# """"" # + """ | | ???# """ [#! """ #????????# # # """ | | ???# """ !#% """ #????????# """# # | | ???# **+ = #????????# Y"# ###### | | ???# """ !#[= k #????????# """# #????? | | ???# """ #* """ #????????# # #????? | | ???# """ #* """ #??????????#####??# #????? | | ???? #^ """ #?????????????????# #????? | | ???##########!! * #?????????????????# #????? | | ???# # !! #?????????????????# #????? | | ???# #!![[= #?????????????????# #????? | | ???# #! [!= #?????????????????# #????? | | ???# # [= #?????????????????# #????? | | ???# / ^ #?????????????????# ###### | | ???# == # #?????????????????# # | | ???# == # """ #?????????????????# # | | ???# = #* """ #?????????????????# # " | | ???# # """ #?????????????????# # "" | | ???####+##### #?????????????????# # "" | +----------------------------------------------------+ Best States ------------- Heat Dissipation 25 Energy Generation 12 Energy Capacity 265 Matter Stores 300 Matter Capacity 300 Sight Range 16 Terrain Scan Density 10 Evasion (%) 63 Item Schematics ----------------- None Robot Schematics ------------------ None Fabricated ------------ Nothing Repaired ---------- Nothing Studied --------- None Alien Tech Used ----------------- None Achievements -------------- None Challenges ------------ None Game ------ Seed ReactiveScatterTether Manual? 0 Play Time 00:08:32 Cumulative 316.9 hours Start 2026.03.02 @ 05:44:47 End 2026.03.02 @ 05:53:45 Sessions 1 Manual Loads 0 Difficulty Rogue Special Mode None Game No. 252 Rogue 252 Adventurer 0 Explorer 0 Win Type - Total 18 Types 9/0/7/2/0/0/0/0/0/0 Lore% 85 Gallery% 75 Achievement% 61 Wizard Run 0 Options --------- Layout 1 ASCII 0 Keyboard 0 Movement Numpad Keybinds 0 Fullscreen 1 Font 32/SmallcapsGlow Map View 77x35 Zoom Use 0% Tactical HUD 1 Map Filters NONE Filters NONE Steam 1 RUN: e00c40ec-98d7-4659-a98c-4507745fb285